bitfinex-derivatives/quotes_ETHF0:USTF0_20220106
["timestamp","ask_amount","ask_price","bid_price","bid_amount"]
[1641483381752,2.00479,3389.6,3388.6,2.00479]
[1641483381954,1.47538976,3389.0,3388.8,0.1152559]
[1641483382154,1.47538976,3389.0,3388.2,2.00479]
[1641483382354,0.206472,3389.5,3388.3,0.1152559]
[1641483382556,1.47542024,3388.9,3388.7,0.1152559]
[1641483382856,12.7,3389.5,3388.7,0.1152559]
[1641483383054,1.47541588,3388.9,3388.4,0.1152559]
[1641483383254,12.7,3389.0,3388.4,0.1152559]
[1641483384458,2.00479,3389.1,3388.4,0.1152559]
[1641483384658,2.00479,3389.1,3389.0,0.1152559]
[1641483384859,2.00479,3389.1,3388.5,0.781654]
[1641483385060,2.00479,3389.1,3389.0,0.1152559]
[1641483385259,2.00479,3389.1,3388.5,0.8969099]
[1641483385458,2.00479,3389.1,3388.7,0.1152559]
[1641483385758,14.70479,3389.1,3388.5,0.397182]
[1641483385958,2.00479,3389.1,3388.5,0.1152559]
[1641483386760,14.70479,3389.1,3388.5,0.1152559]
[1641483387565,1.47537235,3389.0,3388.5,0.1152559]
[1641483387866,14.70479,3389.1,3388.5,0.1152559]
[1641483388062,2.00479,3389.1,3388.5,0.1152559]
[1641483388864,1.47536364,3389.0,3388.5,0.781654]
[1641483389363,1.47536364,3389.0,3388.9,0.1152559]
[1641483389564,1.47536364,3389.0,3388.5,0.5124379]
[1641483389863,2.00479,3389.1,3388.5,0.5124379]
[1641483390063,2.00479,3389.1,3388.2,2.00479]
[1641483390564,1.4754333,3388.9,3388.6,0.1152559]
[1641483390963,2.00479,3389.1,3388.7,0.459982]
[1641483391163,2.00479,3389.1,3388.6,0.1152559]
[1641483391563,14.70479,3389.1,3388.6,0.1152559]
[1641483391763,14.70479,3389.1,3388.2,2.00479]
[1641483391965,2.00479,3389.1,3388.4,0.1152559]
[1641483392165,0.221709,3389.0,3388.2,2.00479]
[1641483392363,2.00479,3389.6,3388.8,0.1152559]
[1641483392563,2.00479,3389.6,3388.4,1.5]
[1641483392763,2.00479,3389.6,3388.3,1.5]
[1641483393065,2.00479,3389.6,3389.3,0.1152559]
[1641483393264,1.47524611,3389.4,3388.5,1.5]
[1641483393465,1.47524611,3389.4,3389.3,2.1200459]
[1641483394066,1.47524611,3389.4,3389.3,2.5800279]
[1641483394266,1.47524611,3389.4,3389.3,2.1200459]
[1641483394466,0.441,3389.8,3389.3,2.1200459]
[1641483394667,0.441,3389.8,3389.3,2.401972]
[1641483394867,0.441,3389.8,3389.7,0.1152559]
[1641483395067,0.441,3389.8,3389.3,2.5172279]
[1641483395269,0.441,3389.8,3389.3,2.401972]
[1641483395469,0.441,3389.8,3389.7,0.1152559]
[1641483395678,0.441,3389.8,3389.3,2.401972]
[1641483396068,1.47512642,3389.6,3389.3,2.401972]
[1641483397168,1.47512642,3389.6,3389.3,2.5172279]
[1641483398068,1.47512642,3389.6,3389.4,0.459982]
[1641483398270,1.47512642,3389.6,3389.3,2.5172279]
[1641483398471,1.47512642,3389.6,3389.3,2.1200459]
[1641483398673,1.47512642,3389.6,3389.3,2.00479]
[1641483399073,1.47512642,3389.6,3389.4,0.459982]
[1641483399877,0.441,3389.8,3389.5,0.1152559]
[1641483400079,0.441,3389.8,3389.3,2.00479]
[1641483400273,0.441,3389.8,3389.3,2.401972]
[1641483400474,0.441,3389.8,3389.7,0.1152559]
[1641483400675,2.00479,3390.6,3389.7,2.8568919]
[1641483400878,33.4209,3391.2,3390.5,0.1152559]
[1641483401074,1.47441304,3391.2,3390.2,1.5]
[1641483401275,1.47441304,3391.2,3390.7,0.1152559]
[1641483401577,1.47441304,3391.2,3390.7,2.5800279]
[1641483401778,1.47441304,3391.2,3390.7,2.9772099]
[1641483402077,0.99888239,3391.0,3390.7,2.9772099]
[1641483402276,0.99888239,3391.0,3390.7,2.861954]
[1641483402477,0.99888239,3391.0,3390.9,0.1152559]
[1641483402677,0.99888239,3391.0,3390.9,0.9724199]
[1641483402877,0.99888239,3391.0,3390.9,1.3568919]
[1641483403481,1.47438478,3391.3,3390.9,2.00479]
[1641483403683,1.47461959,3391.0,3390.7,2.00479]
[1641483404479,35.2665,3391.9,3390.7,2.00479]
[1641483404881,4.0,3391.9,3390.7,2.00479]
[1641483405079,0.99888239,3391.5,3390.7,2.00479]
[1641483405280,1.47458044,3390.8,3390.7,2.00479]
[1641483405486,0.99888239,3391.5,3390.7,4.0800279]
[1641483405684,0.99888239,3391.5,3391.4,0.1152559]
[1641483406082,0.99888239,3391.5,3391.4,0.5124379]
[1641483406383,0.99888239,3391.5,3391.4,0.9724199]
[1641483406779,0.99888239,3391.5,3391.4,2.4724199]
[1641483407181,0.99888239,3391.5,3391.4,0.9724199]
[1641483407383,2.00479,3392.0,3391.4,0.9724199]
[1641483407583,2.00479,3392.0,3391.9,0.1152559]
[1641483408387,2.00479,3392.0,3391.7,0.1152559]
[1641483408388,3.47891614,3392.0,3391.7,0.1152559]
[1641483408586,3.47891614,3392.0,3391.4,2.00479]
[1641483408587,16.17891614,3392.0,3391.4,2.00479]
[1641483408783,1.47417829,3391.7,3391.4,2.5172279]
[1641483408983,1.47417829,3391.7,3391.5,0.459982]
[1641483409385,1.47417829,3391.7,3391.6,0.1152559]
[1641483409585,1.47417829,3391.7,3391.6,0.4997279]
[1641483409984,1.47417829,3391.7,3391.6,0.8969099]
[1641483410587,1.47417829,3391.7,3391.6,0.397182]
[1641483410787,1.47417829,3391.7,3391.4,2.1200459]
[1641483411587,1.47417829,3391.7,3391.5,0.397182]
[1641483412088,3.47884443,3392.0,3391.6,0.5752379]
[1641483412288,3.47884443,3392.0,3391.5,0.397182]
[1641483412689,3.47884443,3392.0,3391.6,0.1152559]
[1641483412989,3.47884443,3392.0,3391.5,0.5124379]
[1641483413189,3.47884443,3392.0,3391.5,0.397182]
[1641483413590,3.47884443,3392.0,3391.7,0.1152559]
[1641483413793,3.47884443,3392.0,3391.8,0.857164]
[1641483413990,3.47884443,3392.0,3391.8,0.397182]
[1641483415090,3.47884443,3392.0,3391.4,2.389262]
[1641483415291,3.47884443,3392.0,3391.9,0.1152559]
[1641483415690,3.47884443,3392.0,3391.5,0.397182]
[1641483418696,3.47884443,3392.0,3391.5,1.897182]
[1641483418898,1.47405443,3392.0,3391.5,0.397182]
[1641483423100,1.9387,3392.3,3391.4,1.66769]
[1641483423101,4.0,3391.8,3391.4,1.66769]
[1641483423300,12.7,3391.5,3389.2,2.20349112]
[1641483423501,1.47446086,3391.6,3390.1,1.5]
[1641483423701,2.00479,3391.3,3390.6,2.00479]
[1641483423906,2.00479,3391.3,3390.7,0.781654]
[1641483424502,1.47446086,3391.6,3390.9,1.5]
[1641483424702,1.47446086,3391.6,3391.0,0.397182]
[1641483424901,1.47446086,3391.6,3391.1,1.5]
[1641483425104,1.47401098,3392.1,3391.2,0.397182]
[1641483425302,1.47401098,3392.1,3390.9,1.5]
[1641483425602,3.47880098,3392.1,3391.4,2.00479]
[1641483426204,1.47413918,3391.8,3391.4,2.00479]
[1641483426405,1.47413918,3391.8,3391.4,2.786444]
[1641483426806,2.00479,3392.1,3391.5,1.5]
[1641483427006,2.00479,3392.1,3391.6,0.397182]
[1641483427208,1.473961,3392.2,3391.6,0.397182]
[1641483427410,1.473961,3392.2,3391.7,1.5]
[1641483427607,0.4387,3392.3,3391.8,0.397182]
[1641483428509,2.00479,3392.5,3391.8,0.397182]
[1641483428710,2.00479,3392.5,3391.4,4.394052]
[1641483428914,2.00479,3392.5,3391.8,0.397182]
[1641483429113,2.00479,3392.5,3391.4,4.394052]
[1641483429312,1.47394797,3392.3,3391.4,4.00958]
[1641483429912,1.5,3392.4,3391.4,4.00958]
[1641483429913,1.47412179,3391.9,3391.4,4.00958]
[1641483430113,2.00479,3392.5,3391.4,4.394052]
[1641483430715,1.47401532,3392.1,3391.4,4.394052]
[1641483430917,1.47401532,3392.1,3391.5,0.397182]
[1641483431115,2.00479,3392.5,3391.5,0.397182]
[1641483431316,1.47395231,3392.3,3391.5,0.397182]
[1641483431526,2.00479,3392.5,3391.5,0.397182]
[1641483431717,1.47401098,3392.1,3391.8,2.00479]
[1641483431918,2.97401098,3392.1,3391.8,2.00479]
[1641483432117,14.70479,3392.5,3391.8,2.00479]
[1641483432118,1.4742348,3391.9,3391.8,2.00479]
[1641483432517,1.5,3392.2,3391.8,2.00479]
[1641483432718,1.5,3392.4,3391.8,2.00479]
[1641483432918,14.70479,3392.5,3391.8,2.00479]
[1641483433618,1.47414787,3391.9,3391.8,2.00479]
[1641483434221,14.70479,3392.5,3391.8,2.00479]
[1641483434419,1.4741696,3391.9,3391.8,2.00479]
[1641483436023,1.5,3392.3,3391.8,2.00479]
[1641483436223,12.7,3392.2,3391.8,2.00479]
[1641483436424,1.4742674,3391.9,3391.8,2.00479]
[1641483436625,1.5,3392.1,3391.8,2.00479]
[1641483436829,1.47416308,3391.9,3391.8,2.00479]
[1641483437426,12.7,3392.2,3391.8,2.00479]
[1641483437626,1.47401532,3392.1,3391.8,2.00479]
[1641483438427,1.47401532,3392.1,3391.9,0.459982]
[1641483438627,1.47401532,3392.1,3391.8,2.00479]
[1641483440330,0.46905393,3392.0,3391.8,2.00479]
[1641483440529,1.49862886,3391.9,3391.8,2.00479]
[1641483441030,2.97273544,3391.9,3391.8,2.464772]
[1641483441431,1.49862886,3391.9,3391.8,3.964772]
[1641483441735,0.46905393,3392.0,3391.8,3.964772]
[1641483441736,1.49862886,3392.0,3391.8,2.464772]
[1641483442930,1.24999846,3392.1,3391.8,2.464772]
[1641483444933,1.24999846,3392.1,3391.9,0.397182]
[1641483445133,1.24999846,3392.1,3392.0,0.459982]
[1641483445332,0.46905393,3392.2,3392.0,0.459982]
[1641483445333,1.96768279,3392.2,3392.0,0.459982]
[1641483445532,1.96768279,3392.2,3392.1,0.397182]
[1641483446537,0.46905393,3392.2,3392.1,0.397182]
[1641483448238,1.49862886,3392.3,3392.1,0.397182]
[1641483448438,1.49862886,3392.4,3392.2,0.844454]
[1641483448636,1.49862886,3392.4,3392.3,0.397182]
[1641483450039,1.49862886,3392.4,3391.8,4.73861026]
[1641483450240,1.49862886,3392.4,3391.8,5.13579226]
[1641483450641,1.49862886,3392.4,3391.9,0.384472]
[1641483450840,1.49862886,3392.4,3391.8,5.13579226]
[1641483451541,1.49862886,3392.3,3391.8,4.406762]
[1641483452345,1.49862886,3392.3,3391.8,4.00958]
[1641483452545,2.34217027,3392.6,3391.8,4.00958]
[1641483452546,0.99921375,3391.9,3391.8,4.00958]
[1641483452743,1.49862886,3392.4,3391.8,5.969562]
[1641483452942,1.49862886,3392.4,3391.9,1.897182]
[1641483453142,1.49862886,3392.4,3392.1,1.5]
[1641483453644,1.49862886,3392.8,3392.3,2.00479]
[1641483454244,1.5,3392.5,3392.3,2.00479]
[1641483454445,1.47399577,3392.4,3391.8,2.37198823]
[1641483454644,1.47399577,3392.4,3391.9,0.7272379]
[1641483455645,2.00479,3392.1,3391.9,0.7272379]
[1641483455847,2.00479,3392.1,3391.7,0.781654]
[1641483456645,1.96759395,3392.3,3391.7,0.781654]
[1641483457045,0.46896509,3392.0,3391.7,1.5088919]
[1641483457245,0.46896509,3392.0,3391.8,0.459982]
[1641483457447,0.46896509,3392.0,3391.9,0.397182]
[1641483457745,0.46896509,3392.0,3391.9,2.401972]
[1641483458346,1.49862886,3392.5,3391.9,3.49696243]
[1641483458546,1.49862886,3392.8,3391.9,3.49696243]
[1641483459347,1.49862886,3392.8,3391.9,3.1292099]
[1641483459549,1.49862886,3392.8,3391.9,2.401972]
[1641483459749,2.34208143,3392.9,3391.9,2.401972]
[1641483459750,1.49862886,3392.7,3391.9,2.401972]
[1641483460451,1.49862886,3392.7,3391.9,3.1292099]
[1641483460950,1.49862886,3392.7,3392.1,1.5]
[1641483461149,1.49862886,3392.7,3392.2,0.397182]
[1641483461550,1.24890472,3392.5,3392.2,0.397182]
[1641483461751,1.24890472,3392.5,3392.3,0.459982]
[1641483462152,1.24890472,3392.5,3392.4,0.781654]
[1641483462556,1.24890472,3392.7,3392.4,0.781654]
[1641483463854,1.24890472,3392.7,3392.4,0.397182]
[1641483465060,1.24890472,3392.7,3392.3,0.384472]
[1641483465257,1.24890472,3392.7,3392.1,0.7272379]
[1641483465457,1.24890472,3392.5,3391.9,2.7320279]
[1641483465857,3.25369472,3392.5,3391.9,2.7320279]
[1641483466056,1.47391104,3392.4,3391.9,2.7320279]
[1641483466458,1.47391104,3392.4,3391.9,3.1292099]
[1641483466859,0.99916357,3392.1,3391.9,2.401972]
[1641483467258,0.99916357,3392.1,3391.9,2.00479]
[1641483467859,0.99916357,3392.1,3391.9,2.464772]
[1641483468059,0.99916357,3392.1,3391.9,2.861954]
[1641483468960,0.99916357,3392.2,3391.9,2.861954]
[1641483469460,0.99916357,3392.2,3392.0,1.5]
[1641483469660,0.99916357,3392.2,3392.1,0.857164]
[1641483469862,0.99916357,3392.3,3392.1,0.397182]
[1641483470062,0.99916357,3392.3,3391.9,2.7320279]
[1641483470264,0.99916357,3392.3,3391.9,3.1292099]
[1641483470663,0.99916357,3392.3,3391.9,2.7320279]
[1641483470867,0.99916357,3392.2,3391.9,2.7320279]
[1641483471065,0.99916357,3392.2,3392.0,0.459982]
[1641483471866,0.99916357,3392.2,3391.9,0.7272379]
[1641483472066,2.97404791,3392.0,3391.9,0.7272379]
[1641483472265,1.5,3392.0,3390.9,0.62525621]
[1641483472464,1.5,3391.8,3390.9,0.62525621]
[1641483472665,1.47438912,3391.3,3390.9,0.62525621]
[1641483473067,1.47438912,3391.3,3390.5,1.83636048]
[1641483473068,15.67452174,3391.0,3390.5,1.83636048]
[1641483473367,4.0,3391.1,3390.5,1.83636048]
[1641483473565,1.47481097,3390.6,3390.5,1.83636048]
[1641483474367,12.7,3390.5,3390.0,3.12964928]
[1641483474768,12.7,3390.5,3389.9,2.00479]
[1641483474968,14.2,3390.5,3389.9,2.00479]
[1641483475169,14.2,3390.5,3389.9,1.42869]
[1641483475769,2.00479,3390.3,3389.5,2.00479]
[1641483475970,1.47492408,3390.0,3389.5,2.00479]
[1641483476570,2.00479,3390.3,3389.5,2.00479]
[1641483476870,2.00479,3390.3,3389.6,1.5]
[1641483477070,2.00479,3390.3,3389.5,2.389262]
[1641483477270,2.00479,3390.3,3389.6,0.397182]
[1641483477975,2.00479,3390.3,3389.6,0.73023999]
[1641483478972,2.00479,3390.3,3389.7,0.33305799]
[1641483479170,2.00479,3390.3,3389.8,0.397182]
[1641483479872,2.00479,3390.7,3390.1,3.50479]
[1641483480070,2.00479,3390.7,3390.2,0.781654]
[1641483480473,2.00479,3390.7,3390.2,2.281654]
[1641483480871,2.00479,3390.7,3390.4,1.5]
[1641483481073,2.00479,3390.7,3390.5,0.857164]
[1641483481270,1.91460217,3391.2,3390.5,0.857164]
[1641483481474,1.47440217,3391.2,3390.5,0.857164]
[1641483481971,1.47440217,3391.2,3390.5,2.861954]
[1641483482173,1.47440217,3391.2,3390.6,0.33305799]
[1641483482775,1.47440217,3391.2,3390.7,0.397182]
[1641483482986,1.47440217,3391.2,3390.7,0.73023999]
[1641483483873,1.47440217,3391.2,3390.8,0.33305799]
[1641483484073,1.47436521,3391.3,3390.8,0.33305799]
[1641483484673,1.47436521,3391.3,3390.5,2.00479]
[1641483484873,3.00395357,3391.4,3390.7,1.5]
[1641483485076,0.99916357,3391.4,3390.9,1.5]
[1641483485275,0.99916357,3391.4,3391.0,0.781654]
[1641483485476,0.99916357,3391.4,3390.6,12.7]
[1641483485477,0.99916357,3391.4,3390.9,1.5]
[1641483485876,0.99916357,3391.4,3391.1,2.00479]
[1641483486077,0.99916357,3391.5,3391.3,1.5]
[1641483486278,0.99916357,3391.5,3391.1,2.00479]
[1641483486476,1.24890472,3391.8,3391.4,0.397182]
[1641483487279,1.24890472,3391.8,3391.5,0.384472]
[1641483487481,1.24890472,3392.5,3391.7,1.5]
[1641483487878,1.24890472,3392.5,3391.9,2.00479]
[1641483488680,1.24890472,3392.5,3392.0,0.397182]
[1641483488880,2.47373258,3392.7,3392.0,0.397182]
[1641483490183,1.7178473,3392.6,3392.0,0.397182]
[1641483491386,1.7178473,3392.6,3392.2,1.5]
[1641483491585,1.7178473,3392.6,3392.3,0.781654]
[1641483491785,1.7178473,3392.6,3392.4,0.459982]
[1641483492286,1.7178473,3392.6,3392.5,0.397182]
[1641483492687,0.46894258,3392.6,3392.5,0.857164]
[1641483492886,0.46894258,3392.6,3392.5,0.397182]
[1641483493688,0.46894258,3392.6,3392.5,0.857164]
[1641483493889,0.46894258,3392.6,3392.5,0.397182]
[1641483494290,0.46894258,3392.6,3392.1,0.72777129]
[1641483494689,0.46894258,3392.6,3392.1,1.11224329]
[1641483495090,1.7178473,3392.6,3392.1,0.384472]
[1641483495295,1.7406373,3392.7,3392.1,0.384472]
[1641483497192,2.47300293,3392.2,3391.8,0.72777129]
[1641483497391,1.5,3391.9,3390.7,1.81482558]
[1641483497592,1.47438695,3391.3,3390.7,1.81482558]
[1641483497792,2.00479,3391.0,3390.7,1.81482558]
[1641483497994,2.97461524,3390.8,3390.5,2.42299677]
[1641483498194,14.2,3390.8,3390.2,3.12964928]
[1641483498392,14.2,3390.8,3390.2,1.82588464]
[1641483498591,12.7,3390.8,3390.2,1.82588464]
[1641483499793,2.00479,3390.4,3390.2,1.82588464]
[1641483499992,2.00479,3390.4,3389.9,2.00479]
[1641483500394,2.00479,3390.4,3389.9,2.389262]
[1641483501498,2.00479,3390.4,3389.9,2.00479]
[1641483505901,2.00479,3390.4,3389.9,2.401972]
[1641483506100,2.00479,3390.4,3389.9,3.026172]
[1641483506502,2.00479,3390.4,3389.9,2.62899]
[1641483508504,2.00479,3390.4,3389.9,3.026172]
[1641483511109,2.00479,3391.0,3390.1,1.5]
[1641483511509,31.0567,3392.6,3390.1,1.5]
[1641483511709,1.47429348,3391.5,3390.1,1.5]
[1641483512010,2.00479,3391.3,3390.3,2.00479]
[1641483514012,2.00479,3391.3,3390.3,4.00958]
[1641483518717,1.47423697,3391.6,3390.3,4.00958]
[1641483519016,1.5,3391.7,3390.3,4.00958]
[1641483519218,1.47423697,3391.6,3390.3,4.00958]
[1641483519418,1.5,3391.7,3390.3,4.00958]
[1641483519619,1.47423697,3391.6,3390.3,4.00958]
[1641483519920,2.00479,3391.7,3390.9,2.00479]
[1641483520118,3.50479,3391.7,3390.9,2.00479]
[1641483520519,1.47423697,3391.6,3390.9,2.00479]
[1641483520718,1.5,3391.5,3390.9,2.00479]
[1641483520918,1.47423697,3391.6,3390.9,2.00479]
[1641483521124,2.00479,3391.7,3391.0,0.781654]
[1641483524021,2.00479,3392.1,3391.0,0.781654]
[1641483525222,1.47405443,3392.0,3391.0,0.781654]
[1641483527826,1.47405443,3392.0,3391.0,1.51127771]
[1641483528443,1.47405443,3392.0,3391.0,0.781654]
[1641483529324,1.47405443,3392.0,3391.0,1.51492299]
[1641483532026,1.47405443,3392.0,3391.1,1.01048923]
[1641483532927,1.47405443,3392.0,3391.1,0.73326899]
[1641483533126,1.47405443,3392.0,3391.0,0.384472]
[1641483534729,2.00479,3392.1,3391.1,14.17363302]
[1641483534930,1.91412197,3392.6,3391.1,15.67363302]
[1641483535129,1.91412197,3392.6,3391.2,1.5]
[1641483535329,1.91412197,3392.6,3391.2,14.2]
[1641483535729,1.91412197,3392.6,3391.2,14.8209]
[1641483535932,1.91412197,3392.6,3391.3,0.73326899]
[1641483536132,0.4403,3392.6,3392.1,2.00479]
[1641483536532,0.4403,3392.6,3391.8,2.00479]
[1641483536733,1.47405443,3392.2,3391.8,2.00479]
[1641483537132,2.97405443,3392.2,3391.8,2.00479]
[1641483537334,2.97405443,3392.2,3391.3,0.73326899]
[1641483537537,2.97405443,3392.2,3391.2,0.73326899]
[1641483537734,1.47405443,3392.2,3391.2,0.73326899]
[1641483538133,3.47884443,3392.2,3391.3,2.00479]
[1641483538335,2.00479,3392.2,3391.3,2.00479]
[1641483538537,1.47401967,3392.1,3391.3,2.00479]
[1641483538938,1.47401967,3392.1,3391.4,0.397182]
[1641483542143,1.91412849,3392.6,3391.4,0.397182]
[1641483542344,2.00479,3392.9,3391.7,1.5]
[1641483542543,2.00479,3392.9,3391.7,2.1538]
[1641483543145,2.00479,3392.9,3391.7,0.6538]
[1641483544050,2.00479,3392.9,3392.1,2.00479]
[1641483544246,2.00479,3392.9,3392.2,0.781654]
[1641483551255,1.5,3392.6,3392.2,0.781654]
[1641483551457,2.97420437,3392.3,3390.7,1.83317248]
[1641483551660,1.5,3391.1,3390.7,1.83317248]
[1641483551857,1.47460219,3390.8,3390.7,1.83317248]
[1641483552459,1.47460219,3390.8,3390.7,0.459982]
[1641483552662,1.47460219,3390.8,3390.5,0.397182]
[1641483552862,2.00479,3391.0,3390.5,0.397182]
[1641483554763,2.00479,3391.0,3390.6,1.5]
[1641483554960,34.07054551,3392.5,3390.7,0.397182]
[1641483555161,35.54440007,3392.5,3390.7,0.397182]
[1641483555359,0.99484551,3392.5,3390.7,0.397182]
[1641483555759,1.5,3392.4,3390.7,0.397182]
[1641483556360,2.00479,3392.1,3391.3,2.00479]
[1641483556562,2.00479,3392.1,3391.3,2.75669]
[1641483556761,2.00479,3392.1,3391.4,0.781654]
[1641483562169,2.00479,3392.4,3391.6,1.5]
[1641483562368,0.99484551,3392.6,3391.9,2.00479]
[1641483562767,0.99484551,3392.6,3392.0,0.397182]
[1641483562969,0.99484551,3392.6,3392.1,0.384472]
[1641483563368,0.99484551,3392.6,3392.2,0.397182]
[1641483563568,3.49705827,3393.1,3392.2,1.897182]
[1641483563569,0.46891426,3393.0,3392.2,1.897182]
[1641483563769,0.46891426,3393.0,3392.2,30.08184092]
[1641483563970,2.00479,3393.1,3392.4,1.5]
[1641483564174,1.49226827,3393.7,3393.0,14.2]
[1641483564370,1.49226827,3393.7,3393.6,5.50958]
[1641483564570,9.32538146,3394.7,3393.6,4.469562]
[1641483564874,1.4923575,3393.9,3393.8,2.9724201]
[1641483565070,3.41978146,3394.9,3393.8,3.7368201]
[1641483565270,3.41978146,3394.9,3394.7,1.5]
[1641483565470,3.41978146,3394.9,3394.8,0.857164]
[1641483565869,1.84278146,3394.9,3394.8,13.557164]
[1641483566071,3.73067068,3395.4,3394.8,13.557164]
[1641483566271,3.73067068,3395.4,3395.3,4.00958]
[1641483566473,3.73067068,3395.4,3395.3,4.866744]
[1641483567073,3.73067068,3395.4,3395.3,5.251216]
[1641483567273,3.71737068,3395.4,3395.3,17.951216]
[1641483567475,1.9106668,3396.6,3395.3,5.251216]
[1641483567872,1.9106668,3396.6,3395.3,17.951216]
[1641483568072,1.9106668,3396.6,3395.3,5.251216]
[1641483568273,0.4386,3396.6,3396.2,2.00479]
[1641483568477,66.2211,3398.1,3396.3,0.857164]
[1641483568478,4.4525904,3396.5,3396.3,0.857164]
[1641483568675,4.4525904,3396.5,3396.3,13.557164]
[1641483569077,4.4525904,3396.5,3396.4,13.084472]
[1641483569276,4.21431193,3397.9,3396.4,15.40325552]
[1641483569478,4.21431193,3397.9,3396.8,12.7]
[1641483569677,4.83906552,3397.9,3396.9,14.17111611]
[1641483569885,4.83906552,3397.9,3396.9,14.72621611]
[1641483570276,4.83906552,3397.9,3397.8,2.00479]
[1641483570477,4.68256882,3398.4,3397.8,3.210072]
[1641483570978,1.5,3398.1,3397.8,2.75009]
[1641483571176,1.9377,3398.9,3397.8,0.7453]
[1641483571379,0.4377,3398.9,3396.5,0.5416]
[1641483571579,1.47131524,3398.3,3396.5,0.5416]
[1641483571778,1.5,3398.1,3396.5,0.5416]
[1641483571984,1.47131524,3398.3,3396.9,1.5]
[1641483572282,1.47131524,3398.3,3396.5,0.5416]
[1641483572283,3.43224771,3398.7,3398.2,2.00479]
[1641483572481,0.397182,3398.6,3398.2,2.58569]
[1641483572685,1.5,3398.4,3398.2,2.58569]
[1641483572982,0.397182,3398.5,3398.2,2.58569]
[1641483573180,3.43224771,3398.6,3398.3,0.384472]
[1641483573581,3.43224771,3398.6,3398.2,2.58569]
[1641483573781,1.47110312,3398.8,3398.2,0.80120854]
[1641483573982,0.397182,3398.7,3398.2,0.80120854]
[1641483574383,2.401972,3398.7,3398.2,0.80120854]
[1641483574984,1.47120917,3398.6,3398.2,0.80120854]
[1641483575286,1.86839117,3398.6,3398.2,0.80120854]
[1641483575686,3.43224771,3399.0,3398.2,0.80120854]
[1641483576285,3.43224771,3399.0,3398.2,2.80599854]
[1641483576486,2.97114641,3398.7,3398.2,0.80120854]
[1641483576686,1.47132606,3398.3,3398.2,0.80120854]
[1641483576886,1.5,3398.7,3398.2,0.22030854]
[1641483577088,3.11627876,3398.3,3398.2,0.22030854]
[1641483577288,1.24777936,3398.3,3398.2,0.22030854]
[1641483578288,1.64496136,3398.3,3398.2,0.22030854]
[1641483578489,0.397182,3398.3,3398.2,0.22030854]
[1641483579688,3.3686358,3398.3,3395.7,1.47145379]
[1641483579890,1.5,3398.0,3395.7,34.21265379]
[1641483580088,1.5,3398.1,3395.7,34.21265379]
[1641483580292,1.47175265,3397.3,3396.9,2.00479]
[1641483580495,0.397182,3397.2,3396.9,2.00479]
[1641483580690,1.47191079,3397.0,3396.9,2.00479]
[1641483580893,1.86909279,3397.0,3396.9,2.00479]
[1641483581292,0.397182,3397.0,3396.9,2.00479]
[1641483581892,0.397182,3397.0,3396.9,2.464772]
[1641483582089,0.397182,3397.0,3396.9,2.00479]
[1641483582691,3.36911662,3397.0,3395.0,1.47193462]
[1641483582889,1.5,3396.2,3395.0,1.47193462]
[1641483583091,2.3775,3396.2,3394.2,30.5417]
[1641483583290,0.8775,3396.2,3394.8,1.5]
[1641483583492,0.8775,3396.2,3395.2,1.5]
[1641483583793,0.8775,3396.2,3395.3,1.47181547]
[1641483584392,2.00479,3396.4,3395.6,2.00479]
[1641483584692,0.397182,3396.3,3395.7,0.384472]
[1641483589096,0.0063653,3396.4,3395.7,0.384472]
[1641483589296,0.0063653,3396.4,3395.8,12.7]
[1641483589696,1.471705,3397.4,3395.7,1.118572]
[1641483590296,2.00479,3397.1,3396.3,2.00479]
[1641483590496,2.00479,3397.1,3396.4,0.384472]
[1641483590701,0.397182,3397.0,3396.4,0.384472]
[1641483591097,1.47196929,3396.8,3395.6,2.00479]
[1641483591300,1.5,3396.9,3395.6,2.00479]
[1641483591498,1.47214264,3396.4,3395.6,2.00479]
[1641483591698,1.5,3396.0,3394.8,32.1986]
[1641483591898,2.97233989,3396.0,3394.1,1.483]
[1641483592098,1.5,3395.7,3394.0,2.95533989]
[1641483592299,2.00479,3395.5,3394.4,2.00479]
[1641483592700,1.47257404,3395.4,3394.4,2.00479]
[1641483592900,2.00479,3395.5,3394.4,2.00479]
[1641483593505,1.5,3395.3,3394.4,2.00479]
[1641483593701,2.1916,3395.3,3394.4,2.00479]
[1641483593901,2.1916,3395.3,3394.4,1.59759]
[1641483594103,0.6916,3395.3,3394.4,1.59759]
[1641483594503,2.00479,3395.0,3394.4,1.59759]
[1641483594701,0.397182,3394.9,3394.4,1.59759]
[1641483595302,0.397182,3394.9,3394.1,2.00479]
[1641483595902,0.397182,3394.9,3393.0,1.47264344]
[1641483595903,1.47289722,3394.7,3393.0,1.47264344]
[1641483596106,1.5,3394.0,3391.7,67.12329015]
[1641483596303,0.8774,3394.0,3391.7,34.4864]
[1641483596603,1.47335945,3393.6,3393.0,2.00479]
[1641483596802,0.397182,3393.5,3393.0,2.00479]
[1641483597004,1.47347234,3393.4,3393.0,2.00479]
[1641483597202,0.397182,3393.3,3393.0,2.00479]
[1641483597402,1.122282,3393.3,3393.0,2.00479]
[1641483599411,0.397182,3393.3,3393.0,2.00479]
[1641483599613,2.00479,3393.8,3393.1,0.459982]
[1641483599810,0.397182,3393.7,3393.1,0.459982]
[1641483600411,0.397182,3393.7,3393.4,2.00479]
[1641483601011,0.397182,3393.7,3393.5,0.459982]
[1641483601213,0.397182,3393.7,3393.4,2.00479]
[1641483601412,2.00479,3394.5,3393.4,2.00479]
[1641483601613,1.47268898,3395.2,3393.4,2.76929]
[1641483602414,2.00479,3394.9,3394.1,2.00479]
[1641483602613,1.47296013,3394.6,3394.1,2.00479]
[1641483602813,1.47296013,3394.6,3393.4,2.00479]
[1641483603414,2.00479,3394.9,3393.4,2.00479]
[1641483604219,3.47761997,3394.9,3393.4,2.00479]
[1641483604414,3.47761997,3394.9,3394.1,2.00479]
[1641483604615,0.397182,3394.8,3394.2,0.384472]
[1641483605617,1.87002065,3394.8,3394.2,0.384472]
[1641483610229,1.47283865,3394.8,3394.2,0.384472]